bitfinex-derivatives/quotes_ETHF0:USTF0_20260223
["timestamp","ask_amount","ask_price","bid_price","bid_amount"]
[1771846293375,7.07257075,1915.4,1914.6,6.88663395]
[1771846293573,6.60387046,1915.4,1914.6,6.88663395]
[1771846294373,7.07269417,1915.3,1914.6,6.88663395]
[1771846294570,6.60387046,1915.3,1914.6,6.88663395]
[1771846297776,6.60387046,1915.3,1914.5,7.14784395]
[1771846301173,5.22514282,1915.7,1914.8,6.88663395]
[1771846301174,6.60387046,1915.5,1914.8,6.88663395]
[1771846301379,0.46919132,1915.4,1914.8,6.88663395]
[1771846301680,6.60387046,1915.5,1914.8,6.88663395]
[1771846302377,6.60387046,1915.6,1915.0,6.88663395]
[1771846304883,6.60387046,1915.6,1914.9,6.88663395]
[1771846305276,6.60387046,1915.4,1914.9,6.88663395]
[1771846307284,6.60387046,1915.2,1914.9,6.88663395]
[1771846310185,6.60387046,1915.2,1914.7,7.12727789]
[1771846314589,6.78298554,1915.0,1914.7,7.12727789]
[1771846315490,6.78298554,1915.0,1914.6,7.12727789]
[1771846319194,6.78298554,1915.0,1914.1,7.12727789]
[1771846319594,6.78298554,1915.0,1914.3,7.12727789]
[1771846323192,6.83696089,1914.9,1914.3,7.12727789]
[1771846323392,6.78298554,1915.0,1914.3,7.12727789]
[1771846323588,6.78298554,1915.2,1914.5,7.12727789]
[1771846323791,0.47000299,1915.1,1914.5,7.12727789]
[1771846324095,6.78298554,1915.3,1914.5,7.12727789]
[1771846324390,6.78298554,1915.4,1914.7,7.12727789]
[1771846324594,0.47000611,1915.3,1914.7,7.12727789]
[1771846324797,6.78298554,1915.4,1914.7,7.12727789]
[1771846324993,0.47000612,1915.3,1914.7,7.12727789]
[1771846325296,6.78298554,1915.4,1914.7,7.12727789]
[1771846325499,6.78298554,1915.6,1914.9,8.82346952]
[1771846326495,0.00414282,1915.7,1915.1,7.12727789]
[1771846328697,5.84114777,1915.7,1915.1,7.12727789]
[1771846335604,6.40107064,1915.5,1915.1,7.12727789]
[1771846336004,6.40107064,1915.6,1915.1,7.12727789]
[1771846341301,0.46577949,1915.5,1915.1,7.12727789]
[1771846341502,6.30453389,1915.4,1915.1,7.12727789]
[1771846341909,6.30453389,1915.4,1914.5,7.38412405]
[1771846342208,6.28964909,1915.1,1914.5,9.08016787]
[1771846342405,6.28880288,1915.2,1914.8,7.38412405]
[1771846343203,4.37643785,1915.5,1914.6,7.38412405]
[1771846343204,6.27387893,1915.0,1914.6,7.38412405]
[1771846345914,5.78397669,1915.3,1914.6,7.38412405]
[1771846346114,5.78397669,1915.1,1914.6,7.38412405]
[1771846346308,9.60143785,1915.4,1914.4,0.26122]
[1771846346309,5.78355651,1915.3,1914.8,7.38412405]
[1771846346514,7.03042214,1915.2,1914.8,7.38412405]
[1771846346708,5.78355651,1915.3,1914.8,7.38412405]
[1771846347010,12.79850308,1915.2,1914.8,7.38412405]
[1771846347211,5.76829265,1915.2,1914.8,7.38412405]
[1771846349010,4.37643785,1915.5,1914.8,7.38412405]
[1771846349314,0.00414282,1915.7,1915.4,7.38412405]
[1771846349515,0.00414282,1915.7,1915.4,7.38876635]
[1771846349710,5.72098583,1915.8,1915.4,7.38876635]
[1771846349910,0.46565373,1915.7,1915.4,7.38876635]
[1771846350113,5.72098583,1915.8,1915.4,7.38876635]
[1771846350308,0.46565372,1915.7,1915.4,7.38876635]
[1771846350514,5.72098583,1915.8,1915.4,7.38876635]
[1771846350815,0.4656388,1915.7,1915.4,7.38876635]
[1771846351015,5.72538942,1915.8,1915.4,7.38876635]
[1771846351213,0.4656388,1915.7,1915.4,7.38876635]
[1771846351513,5.72538942,1915.8,1915.4,7.38876635]
[1771846351813,6.00772545,1915.7,1915.4,7.38876635]
[1771846352015,5.54205351,1915.7,1915.4,7.38876635]
[1771846355514,5.49490878,1915.8,1915.4,7.38876635]
[1771846355709,0.00440359,1915.8,1915.4,7.38876635]
[1771846356814,5.4787059,1915.8,1915.4,7.38876635]
[1771846357517,5.46164588,1916.1,1915.7,1.69604382]
[1771846357716,6.9858382,1916.0,1915.8,7.38412405]
[1771846358009,5.46164588,1916.1,1915.8,7.38412405]
[1771846358214,6.98554932,1916.0,1915.6,7.38412405]
[1771846358411,5.46164588,1916.1,1915.6,7.38412405]
[1771846358612,6.98437801,1916.0,1915.6,7.38412405]
[1771846358805,5.46773634,1916.1,1915.6,7.38412405]
[1771846359006,6.98437801,1916.0,1915.6,7.38412405]
[1771846359209,5.46773634,1916.1,1915.6,7.38412405]
[1771846359412,0.46556315,1916.0,1915.6,7.38412405]
[1771846359609,5.46773634,1916.1,1915.6,7.38412405]
[1771846359817,0.46556367,1916.0,1915.6,7.38412405]
[1771846360019,5.46773634,1916.1,1915.6,7.38412405]
[1771846360217,5.46773634,1916.1,1915.4,0.0046423]
[1771846360218,0.00609046,1916.1,1915.8,7.38412405]
[1771846360517,5.27722678,1916.4,1916.0,7.38412405]
[1771846360718,12.25846808,1916.3,1916.0,7.38412405]
[1771846360917,5.27722678,1916.3,1916.0,7.38412405]
[1771846361315,0.52756606,1916.3,1916.0,7.38412405]
[1771846361515,0.00510271,1916.3,1916.0,7.38412405]
[1771846361718,0.4308559,1916.3,1916.0,7.38412405]
[1771846363819,0.4308559,1916.3,1915.8,7.38412405]
[1771846369023,0.4308559,1916.3,1915.6,7.33803116]
[1771846369218,0.44648598,1916.1,1915.6,7.33803116]
[1771846369623,0.44648598,1916.1,1915.5,7.2671342]
[1771846370318,2.2697161,1915.9,1915.4,7.2717765]
[1771846370523,6.95796655,1915.8,1915.4,7.2717765]
[1771846370720,5.79869885,1916.1,1915.4,7.2717765]
[1771846370918,7.5321712,1916.0,1915.4,7.2717765]
[1771846371126,6.95847235,1915.9,1915.4,7.2717765]
[1771846371320,0.57369885,1916.0,1915.4,7.2717765]
[1771846371522,7.51798498,1915.9,1915.4,7.2717765]
[1771846371722,0.55937305,1915.9,1915.4,7.2717765]
[1771846374323,0.46505802,1915.8,1915.4,7.2717765]
[1771846374524,0.55937305,1915.9,1915.4,7.2717765]
[1771846374724,0.465058,1915.8,1915.4,7.2717765]
[1771846374929,0.55937305,1915.9,1915.4,7.2717765]
[1771846375230,6.96875668,1915.8,1915.4,7.2717765]
[1771846375428,0.55937305,1915.9,1915.4,7.2717765]
[1771846375629,6.96897292,1915.8,1915.4,7.2717765]
[1771846375928,0.54840909,1916.1,1915.4,7.2717765]
[1771846376124,6.96860693,1916.0,1915.4,7.2717765]
[1771846376429,6.96860693,1915.9,1915.4,7.2717765]
[1771846376728,5.77337278,1916.2,1915.4,7.2717765]
[1771846376929,6.9726423,1916.1,1915.4,7.2717765]
[1771846377229,6.9726423,1916.0,1915.4,7.2717765]
[1771846377526,6.9726423,1915.9,1915.4,7.2717765]
[1771846377726,0.46554411,1915.8,1915.4,7.2717765]
[1771846377927,0.53329889,1916.1,1915.4,7.2717765]
[1771846378122,6.97607859,1916.0,1915.4,7.2717765]
[1771846378327,6.97607859,1915.9,1915.4,7.2717765]
[1771846378527,6.97607859,1915.8,1915.4,7.2717765]
[1771846378728,0.53329889,1916.1,1915.4,7.2717765]
[1771846378928,6.9806843,1916.0,1915.4,7.2717765]
[1771846379128,6.9806843,1915.9,1915.4,7.2717765]
[1771846379330,6.9806843,1915.8,1915.4,7.2717765]
[1771846379627,4.90973674,1916.1,1915.4,7.2717765]
[1771846379828,6.98090617,1916.0,1915.4,7.2717765]
[1771846380029,6.98090617,1915.9,1915.4,7.2717765]
[1771846380230,6.98090617,1915.8,1915.4,7.2717765]
[1771846380529,0.982917,1915.7,1915.4,7.2717765]
[1771846380731,2.21286451,1915.5,1915.0,7.23285675]
[1771846381032,6.9812631,1915.4,1915.0,7.23285675]
[1771846381233,0.50145112,1915.5,1915.0,7.23285675]
[1771846381431,0.45341363,1915.3,1915.0,7.23285675]
[1771846381637,0.45341363,1915.3,1915.0,7.23796247]
[1771846381940,0.45341363,1915.4,1915.0,7.23796247]
[1771846383830,0.47513832,1915.6,1915.0,7.23796247]
[1771846384034,7.43632655,1915.5,1915.0,7.23796247]
[1771846384234,0.92530341,1915.4,1915.0,7.23796247]
[1771846384435,0.45959732,1915.4,1915.0,7.23796247]
[1771846385538,0.41567182,1915.6,1915.0,7.23796247]
[1771846385734,7.38897936,1915.5,1915.0,7.23796247]
[1771846385935,0.46547414,1915.4,1915.0,7.23796247]
[1771846386136,0.41567182,1915.5,1915.0,7.23796247]
[1771846386538,0.86534694,1915.4,1915.0,7.23796247]
[1771846386836,0.39997983,1915.4,1915.0,7.23796247]
[1771846388429,0.39997983,1915.4,1915.0,2.47710873]
[1771846388630,1.69604382,1915.5,1915.0,0.00510572]
[1771846388631,5.56337011,1915.3,1915.0,0.00510572]
[1771846388834,5.09817699,1915.3,1915.0,0.00510572]
[1771846389445,5.09277367,1915.2,1914.8,7.23285675]
[1771846390336,5.09277367,1915.2,1914.9,7.23285675]
[1771846390537,10.63847234,1915.4,1914.9,7.23285675]
[1771846390738,6.9655944,1915.3,1914.9,7.23285675]
[1771846390938,5.41347234,1915.4,1914.9,7.23285675]
[1771846391338,0.46494939,1915.3,1914.9,7.23285675]
[1771846391539,5.44074132,1915.5,1914.9,7.23285675]
[1771846391740,12.40571174,1915.4,1914.9,7.23285675]
[1771846391942,5.44074132,1915.4,1914.9,7.23285675]
[1771846392931,0.46496993,1915.3,1914.9,7.23285675]
[1771846393138,5.41358339,1915.4,1914.9,7.23285675]
[1771846393339,0.46500302,1915.3,1914.9,7.23285675]
[1771846393641,5.41358339,1915.4,1914.9,7.23285675]
[1771846393840,0.46500301,1915.3,1914.9,7.23285675]
[1771846394042,5.41358339,1915.4,1914.9,7.23285675]
[1771846394242,0.46500303,1915.3,1914.9,7.23285675]
[1771846394441,5.41358339,1915.4,1914.9,7.23285675]
[1771846394741,0.4650544,1915.3,1914.9,7.23285675]
[1771846394943,5.33657201,1915.5,1914.9,7.23285675]
[1771846395141,6.96690283,1915.4,1914.9,7.23285675]
[1771846395342,0.46505441,1915.3,1914.9,7.23285675]
[1771846395542,5.33657201,1915.5,1914.9,7.23285675]
[1771846395743,6.96785814,1915.4,1914.9,7.23285675]
[1771846395942,5.4177226,1915.6,1914.9,7.23285675]
[1771846396139,12.37132907,1915.5,1914.9,7.23285675]
[1771846396339,12.37124712,1915.4,1914.9,7.23285675]
[1771846396540,0.46511831,1915.3,1914.9,7.23285675]
[1771846398242,5.40380255,1915.4,1914.9,7.23285675]
[1771846398443,6.97250589,1915.3,1914.9,7.23285675]
[1771846398745,5.40380255,1915.4,1914.9,7.23285675]
[1771846398946,6.9725059,1915.3,1914.9,7.23285675]
[1771846399147,5.40380255,1915.4,1914.9,7.23285675]
[1771846399448,6.97464741,1915.3,1914.9,7.23285675]
[1771846399648,5.40380255,1915.4,1914.9,7.23285675]
[1771846399849,6.97475315,1915.3,1914.9,7.23285675]
[1771846400049,5.40380255,1915.4,1914.9,7.23285675]
[1771846400346,6.9747528,1915.3,1914.9,7.23285675]
[1771846400547,12.34643511,1915.2,1914.9,7.23285675]
[1771846400747,0.46574516,1915.1,1914.9,7.23285675]
[1771846400946,5.35725958,1915.3,1914.9,7.23285675]
[1771846401148,6.97641094,1915.2,1914.9,7.23285675]
[1771846401347,0.46574388,1915.1,1914.9,7.23285675]
[1771846401549,5.35725958,1915.3,1914.9,7.23285675]
[1771846401748,6.97662751,1915.2,1914.9,7.23285675]
[1771846402051,0.46575542,1915.1,1914.9,7.23285675]
[1771846402349,5.35725958,1915.3,1914.9,7.23285675]
[1771846402552,6.97705007,1915.2,1914.9,7.23285675]
[1771846402849,0.46578101,1915.1,1914.9,7.23285675]
[1771846403044,5.35725958,1915.3,1914.9,7.23285675]
[1771846403251,12.30022776,1915.2,1914.9,7.23285675]
[1771846403452,6.97705697,1915.1,1914.9,7.23285675]
[1771846403652,5.32317079,1915.2,1914.9,7.23285675]
[1771846403854,6.97759261,1915.1,1914.9,7.23285675]
[1771846404053,5.32317079,1915.2,1914.9,7.23285675]
[1771846404254,6.97759297,1915.1,1914.9,7.23285675]
[1771846404459,5.15483639,1915.3,1914.9,7.23285675]
[1771846404754,6.97837121,1915.2,1914.9,7.23285675]
[1771846404952,6.97837121,1915.1,1914.9,7.23285675]
[1771846405255,5.15483639,1915.3,1914.9,7.23285675]
[1771846405450,6.97921491,1915.2,1914.9,7.23285675]
[1771846405651,5.15483639,1915.3,1914.9,7.23285675]
[1771846405652,6.97921491,1915.1,1914.9,7.23285675]
[1771846405953,5.15483639,1915.3,1914.9,7.23285675]
[1771846406154,12.10880191,1915.2,1914.9,7.23285675]
[1771846406357,6.97921491,1915.1,1914.9,7.23285675]
[1771846406558,5.129587,1915.2,1914.9,7.23285675]
[1771846406758,6.98115186,1915.1,1914.9,7.23285675]
[1771846406958,5.129587,1915.2,1914.9,7.23285675]
[1771846407157,6.9811515,1915.1,1914.9,7.23285675]
[1771846407358,0.46604373,1915.0,1914.9,7.23285675]
[1771846408260,6.98642811,1915.0,1914.9,7.23285675]
[1771846409259,6.52479646,1915.0,1914.9,7.23285675]
[1771846409957,4.37643785,1915.3,1914.9,7.23285675]
[1771846409958,4.37643785,1915.4,1914.9,7.23285675]
[1771846410954,9.91348276,1915.4,1914.9,7.23285675]
[1771846411155,5.53704491,1915.3,1914.9,7.23285675]
[1771846411361,9.91348276,1915.3,1914.9,7.23285675]
[1771846412661,4.37643785,1915.3,1914.9,7.23285675]
[1771846413859,4.37643785,1915.3,1914.8,0.00540932]
[1771846414058,4.37643785,1915.4,1914.8,7.38257828]
[1771846415558,5.37239544,1915.3,1914.8,7.38257828]
[1771846416364,5.35567108,1915.2,1914.8,7.38257828]
[1771846417057,4.37643785,1915.2,1914.2,7.37716896]
[1771846417262,6.35942718,1915.1,1914.2,7.37716896]
[1771846417965,6.35942718,1915.1,1914.2,7.38288659]
[1771846419367,10.73586503,1915.1,1914.2,7.38288659]
[1771846419553,4.37643785,1915.1,1914.2,7.38288659]
[1771846419760,6.33777227,1915.0,1914.2,7.38288659]
[1771846420760,4.37643785,1915.2,1914.4,7.37716896]
[1771846421367,0.46320871,1915.1,1914.4,7.37716896]
[1771846421567,0.46320871,1915.0,1914.4,7.37716896]
[1771846421767,0.46320871,1914.9,1914.4,7.37716896]
[1771846422064,0.46320871,1914.8,1914.4,7.37716896]
[1771846422260,0.00392446,1914.9,1914.4,7.37716896]
[1771846422457,0.46317691,1914.8,1914.4,7.37716896]
[1771846422658,0.00392446,1914.9,1914.4,7.37716896]
[1771846422861,0.46317691,1914.8,1914.4,7.37716896]
[1771846423057,0.00392446,1914.9,1914.4,7.37716896]
[1771846423259,0.46314669,1914.8,1914.4,7.37716896]
[1771846423466,0.00392446,1914.9,1914.4,7.37716896]
[1771846423667,0.46314669,1914.8,1914.4,7.37716896]
[1771846423869,0.00392446,1914.9,1914.4,7.37716896]
[1771846424061,0.46314669,1914.8,1914.4,7.37716896]
[1771846424260,0.00392446,1914.9,1914.4,7.37716896]
[1771846424465,0.46312303,1914.8,1914.4,7.37716896]
[1771846424665,0.00392446,1914.9,1914.4,7.37716896]
[1771846424867,0.46312212,1914.8,1914.4,7.37716896]
[1771846425171,0.00392446,1914.9,1914.4,7.37716896]
[1771846425370,0.46310083,1914.8,1914.4,7.37716896]
[1771846425567,0.46310049,1914.7,1914.4,7.37716896]
[1771846425769,6.36412051,1914.9,1914.4,7.37716896]
[1771846425975,13.18485887,1914.8,1914.4,7.37716896]
[1771846426175,6.82466282,1914.7,1914.4,7.37716896]
[1771846426376,0.46309952,1914.6,1914.4,7.37716896]
[1771846426575,6.36019605,1914.8,1914.4,7.37716896]
[1771846426777,6.82372181,1914.7,1914.4,7.37716896]
[1771846426972,0.00392446,1914.9,1914.4,7.37716896]
[1771846433275,7.20027475,1914.9,1914.4,7.37716896]
[1771846434677,7.20027475,1914.9,1914.3,7.69791942]
[1771846436382,7.19635029,1914.8,1914.3,7.69791942]
[1771846438879,6.66251396,1914.7,1914.3,7.69791942]
[1771846439083,6.66251396,1914.6,1914.3,7.69791942]
[1771846439283,0.45927426,1914.5,1914.3,7.69791942]
[1771846439582,7.19635029,1914.7,1914.3,7.69791942]
[1771846439776,13.85872488,1914.6,1914.3,7.69791942]
[1771846439980,0.45926195,1914.5,1914.3,7.69791942]
[1771846440181,7.19635029,1914.6,1914.3,7.69791942]
[1771846440380,0.45930122,1914.5,1914.3,7.69791942]
[1771846440580,7.19635029,1914.5,1914.3,7.69791942]
[1771846440776,7.19635029,1914.5,1914.2,0.00571763]
[1771846440978,7.19635029,1914.5,1914.2,7.70363705]
[1771846441482,9.60143785,1914.8,1914.2,7.70363705]
[1771846441483,7.65565905,1914.4,1914.2,7.70363705]
[1771846441782,7.19635029,1914.4,1914.2,7.70363705]
[1771846442087,7.19635029,1914.6,1914.2,7.70363705]
[1771846442280,13.85967506,1914.5,1914.2,7.70363705]
[1771846442586,0.45927787,1914.4,1914.2,7.70363705]
[1771846442883,7.19635029,1914.6,1914.2,0.00571763]
[1771846443084,7.19635029,1914.4,1914.2,0.00571763]
[1771846443280,13.85823785,1914.3,1914.2,0.00571763]
[1771846444183,6.66188756,1914.3,1914.2,0.00571763]
[1771846445684,7.19635029,1914.2,1913.8,7.69791942]
[1771846445986,7.19635029,1914.3,1913.8,7.69791942]
[1771846446179,7.65525944,1914.2,1913.8,7.69791942]
[1771846446380,0.45890915,1914.1,1913.8,7.69791942]
[1771846446687,7.19635029,1914.2,1913.8,7.7028165]
[1771846446889,0.45879433,1914.1,1913.8,7.7028165]
[1771846447088,7.19635029,1914.4,1913.8,7.7028165]
[1771846447288,7.19635029,1914.2,1913.8,7.7028165]
[1771846447489,7.65505773,1914.1,1913.8,7.7028165]
[1771846447690,7.19635029,1914.1,1913.8,7.7028165]
[1771846447988,4.37596993,1914.4,1913.8,7.7028165]
[1771846448188,7.19635029,1914.2,1913.8,7.7028165]
[1771846448389,0.45867943,1914.1,1913.8,7.7028165]
[1771846448590,7.19635029,1914.4,1913.8,7.7028165]
[1771846448888,13.84946549,1914.3,1913.8,7.7028165]
[1771846449088,6.6531152,1914.2,1913.8,7.7028165]
[1771846449288,7.19635029,1914.3,1913.8,7.7028165]
[1771846449289,0.45854955,1914.1,1913.8,7.7028165]
[1771846449489,7.19635029,1914.3,1913.8,7.7028165]
[1771846449790,13.84791823,1914.2,1913.8,7.7028165]
[1771846449991,7.19635029,1914.1,1913.8,0.00489708]
[1771846450991,7.19635029,1914.1,1913.8,7.7028165]
[1771846454594,7.19635029,1914.1,1913.8,0.00489708]
[1771846455294,7.65437453,1914.0,1913.5,7.69791942]
[1771846455492,7.65437453,1913.9,1913.3,7.69791942]
[1771846455693,7.19635029,1913.9,1913.3,7.69791942]
[1771846456194,7.19635029,1913.9,1913.3,7.70266819]
[1771846458489,7.36489855,1914.1,1913.3,9.40157559]
[1771846458693,14.00754312,1914.0,1913.3,9.40157559]
[1771846458893,0.45763929,1913.9,1913.3,9.40157559]
[1771846459096,7.82253784,1913.9,1913.3,9.40157559]
[1771846459393,5.225,1914.2,1913.3,7.70266819]
[1771846459593,7.36489855,1914.0,1913.3,7.70266819]
[1771846459794,0.4576196,1913.9,1913.3,7.70266819]
[1771846459994,7.36489855,1914.0,1913.3,7.70266819]
[1771846460296,7.82251827,1913.9,1913.3,7.70266819]
[1771846460494,7.36489855,1913.9,1913.3,7.70266819]
[1771846460995,7.36489855,1914.1,1913.3,7.70266819]
[1771846461197,14.00718924,1914.0,1913.3,7.70266819]
[1771846461494,0.45760833,1913.9,1913.3,7.70266819]
[1771846461696,7.36489855,1914.0,1913.3,7.70266819]
[1771846461892,0.45762693,1913.9,1913.3,7.70266819]
[1771846462095,7.36489855,1914.0,1913.3,7.70266819]
[1771846462294,6.64339436,1913.9,1913.3,7.70266819]
[1771846462495,7.36489855,1914.0,1913.3,7.70266819]
[1771846462695,6.64333725,1913.9,1913.3,7.70266819]
[1771846462896,7.36489855,1914.0,1913.3,7.70266819]
[1771846463094,6.64283641,1913.9,1913.3,7.70266819]
[1771846463295,7.36489855,1914.0,1913.3,7.70266819]
[1771846463495,14.00877595,1913.9,1913.3,7.70266819]
[1771846463796,7.36489855,1913.9,1913.3,7.70266819]
[1771846464293,0.45778642,1913.8,1913.3,7.70266819]
[1771846464497,7.36489855,1914.0,1913.5,6.90606796]
[1771846464699,0.45782545,1913.9,1913.5,6.90606796]
[1771846464896,7.36489855,1914.0,1913.5,6.90606796]
[1771846465097,0.45784763,1913.9,1913.5,6.90606796]
[1771846465298,11.74086848,1914.2,1913.5,6.90606796]
[1771846465498,6.6476724,1914.1,1913.5,6.90606796]
[1771846465695,6.6476724,1914.0,1913.5,6.90606796]
[1771846465895,0.45798757,1913.9,1913.5,6.90606796]
[1771846466196,7.36489855,1914.1,1913.5,6.90606796]
[1771846466397,6.64801712,1914.0,1913.5,6.90606796]
[1771846466596,0.45810889,1913.9,1913.5,6.90606796]
[1771846466797,7.36489855,1914.1,1913.5,6.90606796]
[1771846466989,6.64916578,1914.0,1913.5,6.90606796]
[1771846467194,7.82300845,1913.9,1913.5,6.90606796]
[1771846467499,0.45819099,1913.8,1913.5,6.90606796]
[1771846467798,7.36489855,1913.9,1913.5,6.90606796]
[1771846467999,7.8230847,1913.8,1913.5,6.90606796]
[1771846468292,7.36489855,1913.8,1913.5,6.90606796]
[1771846468598,4.37596993,1914.1,1913.5,6.90606796]
[1771846468794,7.36489855,1913.9,1913.5,6.90606796]
[1771846468995,7.36489855,1914.3,1913.8,6.90606796]
[1771846469200,6.19532588,1914.2,1913.8,6.90606796]
[1771846469399,6.1979515,1914.1,1913.8,6.90606796]
[1771846469597,7.36489855,1914.3,1913.8,6.90606796]
[1771846469896,13.56291974,1914.2,1913.8,6.90606796]
[1771846470093,6.19802119,1914.1,1913.8,6.90606796]
[1771846470399,7.36489855,1914.2,1913.8,6.90606796]
[1771846470601,6.19822243,1914.1,1913.8,6.90606796]
[1771846470805,7.36489855,1914.2,1913.8,6.90606796]
[1771846470999,6.19821186,1914.1,1913.8,6.90606796]
[1771846471296,7.36489855,1914.2,1913.8,6.90606796]
[1771846471490,6.20061759,1914.1,1913.7,6.90606796]
[1771846471695,7.36489855,1914.2,1913.7,6.90606796]
[1771846471897,6.20059193,1914.1,1913.7,6.90606796]
[1771846472096,7.36489855,1914.2,1913.7,6.90606796]
[1771846472299,13.56550075,1914.1,1913.7,6.90606796]
[1771846472497,6.2006022,1914.0,1913.7,6.90606796]
[1771846472693,7.36489855,1914.1,1913.7,6.90606796]
[1771846472898,7.36489855,1914.2,1913.7,6.90606796]
[1771846473098,6.20282217,1914.1,1913.7,6.90606796]
[1771846473297,6.2047886,1914.0,1913.7,6.90606796]
[1771846473594,7.36489855,1914.2,1913.7,6.90606796]
[1771846473796,6.2049522,1914.1,1913.7,6.90606796]
[1771846474002,7.36489855,1914.2,1913.7,6.90606796]
[1771846474304,11.74086848,1914.4,1914.0,6.90606796]
[1771846474504,7.36489855,1914.4,1914.0,6.90606796]
[1771846475802,7.36489855,1914.5,1914.0,6.90606796]
[1771846477906,7.36489855,1914.6,1914.0,6.90606796]
[1771846478107,7.36489855,1914.8,1914.2,6.90606796]
[1771846479102,5.22892446,1914.9,1914.6,1.6989074]
[1771846479302,7.36489855,1915.3,1914.8,8.60497536]
[1771846479603,7.36489855,1915.4,1914.8,8.60497536]
[1771846479799,7.36489855,1915.5,1914.8,6.90606796]
[1771846480201,7.36866564,1915.5,1914.8,6.91117514]
[1771846481006,0.45478622,1915.4,1914.8,6.91117514]
[1771846481207,7.36866564,1915.5,1914.8,6.91117514]
[1771846482909,0.00376709,1915.5,1915.0,6.90606796]
[1771846492723,7.07501867,1915.5,1915.0,6.90606796]
[1771846500530,7.07125158,1915.3,1914.8,7.31436309]
[1771846501825,0.00376709,1915.5,1914.9,1.6989074]
[1771846502137,7.07125158,1915.9,1915.4,7.30925591]
[1771846502528,7.07125158,1916.3,1915.4,7.30925591]
[1771846502729,1.6989074,1916.4,1915.4,7.30925591]
[1771846502730,7.07125158,1916.1,1915.4,7.30925591]
[1771846503132,7.07125158,1915.9,1915.4,7.30925591]
[1771846503428,7.07125158,1915.9,1915.2,7.30925591]
[1771846503629,7.07125158,1915.5,1915.1,7.30925591]
[1771846503929,7.07125158,1915.5,1914.9,7.30925591]
[1771846504530,1.6989074,1915.8,1914.9,7.30925591]
[1771846504531,7.07125158,1915.7,1914.9,7.30925591]
[1771846504731,7.52544932,1915.6,1914.9,7.30925591]
[1771846504932,7.07125158,1915.6,1914.9,7.30925591]
[1771846507339,0.45538685,1915.5,1914.9,7.30925591]
[1771846507540,7.07125158,1915.6,1914.9,7.30925591]
[1771846507840,0.45538685,1915.5,1914.9,7.30925591]
[1771846508040,7.07125158,1915.6,1914.9,7.30925591]
[1771846508240,0.45576753,1915.5,1914.9,7.30925591]
[1771846508540,7.07125158,1915.6,1914.9,7.30925591]
[1771846508742,0.45576746,1915.5,1914.9,7.30925591]
[1771846508939,7.07125158,1915.6,1914.9,7.30925591]
[1771846509243,6.51572724,1915.5,1914.9,7.30925591]
[1771846509443,0.45576746,1915.4,1914.9,7.30925591]
[1771846509742,7.07125158,1915.6,1914.9,7.30925591]
[1771846509941,6.51634786,1915.5,1914.9,7.30925591]
[1771846510132,0.45638808,1915.4,1914.9,7.30925591]
[1771846510332,7.07125158,1915.6,1914.9,7.30925591]
[1771846510541,6.51684068,1915.5,1914.9,7.30925591]
[1771846510842,0.45642078,1915.4,1914.9,7.30925591]
[1771846511039,7.07125158,1915.6,1914.9,7.30925591]
[1771846511241,6.51688097,1915.5,1914.9,7.30925591]
[1771846511440,0.45646107,1915.4,1914.9,7.30925591]
[1771846511635,7.07125158,1915.8,1915.3,7.30925591]
[1771846511836,6.06084237,1915.7,1915.3,7.30925591]
[1771846512042,6.06084237,1915.6,1915.3,7.30925591]
[1771846512239,11.44722151,1915.9,1915.3,7.30925591]
[1771846512542,13.13214616,1915.8,1915.3,7.30925591]
[1771846512742,6.06089458,1915.7,1915.3,7.30925591]
[1771846513038,7.07125158,1915.5,1915.0,7.30925591]
[1771846513538,7.07125158,1915.7,1915.0,7.30925591]
[1771846513740,6.06062222,1915.6,1915.0,7.30925591]
[1771846513940,6.06062222,1915.5,1915.0,7.30925591]
[1771846514144,7.07125158,1915.6,1915.0,7.30925591]
[1771846514346,6.0605099,1915.5,1915.0,7.30925591]
[1771846514545,7.07125158,1915.6,1915.0,7.30925591]
[1771846514741,6.06035205,1915.5,1915.0,7.30925591]
[1771846514942,7.07125158,1915.6,1915.0,7.30925591]
[1771846515143,6.06035241,1915.5,1915.0,7.30925591]
[1771846515343,7.07125158,1915.6,1915.0,7.30925591]
[1771846515544,6.06010324,1915.5,1915.0,7.30925591]
[1771846515744,7.07125158,1915.6,1915.0,7.30925591]
[1771846515944,6.06010324,1915.5,1915.0,7.30925591]
[1771846516148,11.44722151,1915.8,1915.0,7.30925591]
[1771846516446,6.05987548,1915.7,1915.0,7.30925591]
[1771846516644,6.05987548,1915.6,1915.0,7.30925591]
[1771846516844,6.05987548,1915.5,1915.0,7.30925591]
[1771846517043,7.07125158,1915.7,1915.0,7.30925591]
[1771846517346,6.05987522,1915.6,1915.0,7.30925591]
[1771846517546,6.05987522,1915.5,1915.0,7.30925591]
[1771846517847,7.07125158,1915.7,1915.0,7.30925591]
[1771846518046,6.05970025,1915.6,1915.0,7.30925591]
[1771846518246,6.05970025,1915.5,1915.0,7.30925591]
[1771846518447,7.07125158,1915.7,1915.0,7.30925591]
[1771846518648,6.05768463,1915.6,1915.0,7.30925591]
[1771846518848,6.05768463,1915.5,1915.0,7.30925591]
[1771846519146,7.07125158,1915.7,1915.0,7.30925591]
[1771846519347,6.05768428,1915.6,1915.0,7.30925591]
[1771846519549,6.05768428,1915.5,1915.0,7.30925591]
[1771846519748,7.07125158,1915.7,1915.0,7.30925591]
[1771846519948,6.05757246,1915.6,1915.0,7.30925591]
[1771846520148,6.05757246,1915.5,1915.0,7.30925591]
[1771846520349,7.07125158,1915.7,1915.0,7.30925591]
[1771846520548,6.05748373,1915.6,1915.0,7.30925591]
[1771846520848,6.05748373,1915.5,1915.0,7.30925591]
[1771846521147,7.07125158,1915.7,1915.0,7.30925591]
[1771846521349,6.05752848,1915.6,1915.0,7.30925591]
[1771846521548,6.05752848,1915.5,1915.0,7.30925591]
[1771846521748,7.07125158,1915.7,1915.0,7.30925591]
[1771846521950,6.05744075,1915.6,1915.0,7.30925591]
[1771846522250,6.05744075,1915.5,1915.0,7.30925591]
[1771846522443,7.07125158,1915.7,1915.0,7.30925591]
[1771846522645,6.0574222,1915.6,1915.0,7.30925591]
[1771846522846,6.0574222,1915.5,1915.0,7.30925591]
[1771846523046,7.07125158,1915.7,1915.0,7.30925591]
[1771846523346,6.0574222,1915.6,1915.0,7.30925591]
[1771846523546,6.0574222,1915.5,1915.0,7.30925591]
[1771846523846,0.4529563,1915.4,1915.0,7.30925591]
[1771846524045,7.07125158,1915.7,1915.0,7.30925591]
[1771846524244,6.51039455,1915.6,1915.0,7.30925591]
[1771846524447,6.51039455,1915.5,1915.0,7.30925591]
[1771846524647,0.45296313,1915.4,1915.0,7.30925591]
[1771846524846,7.67605376,1915.6,1915.0,7.30925591]
[1771846525051,0.45296314,1915.5,1915.0,7.30925591]
[1771846525249,0.45296314,1915.4,1915.0,7.30925591]
[1771846525449,7.67605376,1915.6,1915.0,7.30925591]
[1771846525651,0.45297234,1915.5,1915.0,7.30925591]
[1771846525852,0.45297234,1915.4,1915.0,7.30925591]
[1771846526055,7.67605376,1915.6,1915.0,7.30925591]
[1771846526248,0.45298413,1915.5,1915.0,7.30925591]
[1771846526548,0.45298413,1915.4,1915.0,7.30925591]
[1771846526748,7.67605376,1915.6,1915.0,7.30925591]
[1771846526952,0.45298414,1915.5,1915.0,7.30925591]